[Event "1st Archibald 2019"]
[Site "Sochi"]
[Date "2019.05.18"]
[Round "8.22"]
[White "Yakimenko, Alexander A."]
[Black "Osipov, Aleksandr"]
[Result "1/2-1/2"]
[ECO "C15"]
[WhiteElo "2059"]
[BlackElo "2024"]
[Annotator "NA"]
[PlyCount "118"]
[EventDate "2019.05.12"]
[EventType "swiss"]
[EventCountry "RUS"]
[SourceTitle "playchess.com"]
[Source "ChessBase"]
[SourceQuality "1"]
[TimeControl "5400+30"]

1. e4 {[%emt 0:00:00]} e6 {[%emt 0:00:11]} 2. d4 {[%emt 0:00:07]} d5 {[%emt 0:00:08]} 3. Nc3 {[%emt 0:00:15]} Bb4 {[%emt 0:00:16]} 4. Nge2 {[%emt 0:00:05]} dxe4 {[%emt 0:00:21]} 5. a3 {[%emt 0:00:07]} Bxc3+ {[%emt 0:00:08]} 6. Nxc3 {[%emt 0:00:07]} Nc6 {[%emt 0:00:31]} 7. Bb5 {[%emt 0:07:16]} Nge7 {[%emt 0:00:26]} 8. O-O {[%emt 0:05:11]} O-O {[%emt 0:02:33]} 9. Bg5 {[%emt 0:02:22]} f6 {[%emt 0:03:00]} 10. Be3 {[%emt 0:00:42]} f5 {[%emt 0:03:29]} 11. Qd2 {[%emt 0:06:23]} b6 {[%emt 0:17:20]} 12. f3 {[%emt 0:09:11]} exf3 {[%emt 0:05:11]} 13. Rxf3 {[%emt 0:01:22]} Bb7 {[%emt 0:01:15]} 14. Re1 {[%emt 0:05:42]} Qd6 {[%emt 0:10:31]} 15. Qf2 {[%emt 0:10:44]} Ng6 {[%emt 0:17:23]} 16. Bf4 {[%emt 0:14:26]} Nxf4 {[%emt 0:00:26]} 17. Rxf4 {[%emt 0:00:06]} Ne7 {[%emt 0:02:27]} 18. Bc4 {[%emt 0:03:28]} Rf6 {[%emt 0:02:59]} 19. Nb5 {[%emt 0:05:16]} Qc6 {[%emt 0:00:54]} 20. Qe2 {[%emt 0:09:35]} Kf7 {[%emt 0:13:21]} 21. Bb3 {[%emt 0:02:20]} a6 {[%emt 0:01:49]} 22. Nc3 {[%emt 0:00:14]} Rd8 {[%emt 0:00:07]} 23. Rd1 {[%emt 0:05:17]} Qd6 {[%emt 0:02:14]} 24. Rf2 {[%emt 0:00:51]} Rh6 {[%emt 0:00:39]} 25. h3 {[%emt 0:01:59]} Rg6 {[%emt 0:00:33]} 26. Rd3 {[%emt 0:01:53]} Kg8 {[%emt 0:05:49]} 27. Qd2 {[%emt 0:03:01]} Kh8 {[%emt 0:01:19]} 28. Ne2 {[%emt 0:00:57]} Be4 {[%emt 0:01:48]} 29. Nf4 {[%emt 0:00:38]} Rf6 {[%emt 0:00:25]} 30. Re3 {[%emt 0:00:35]} c5 {[%emt 0:00:47]} 31. c3 {[%emt 0:00:48]} Ng6 {[%emt 0:02:47]} 32. Nh5 {[%emt 0:00:43]} Rff8 {[%emt 0:00:05]} 33. Re1 {[%emt 0:00:44]} b5 {[%emt 0:02:52]} 34. Rd1 {[%emt 0:00:33]} c4 {[%emt 0:00:04]} 35. Bc2 {[%emt 0:00:40]} Bc6 {[%emt 0:00:03]} 36. Qg5 {[%emt 0:00:59]} Qe7 {[%emt 0:01:28]} 37. Qxe7 {[%emt 0:00:31]} Nxe7 {[%emt 0:00:04]} 38. Re1 {[%emt 0:00:01]} Rd6 {[%emt 0:00:51]} 39. Rfe2 {[%emt 0:00:40]} Bd7 {[%emt 0:00:41]} 40. Re5 {[%emt 0:01:11]} Nd5 {[%emt 0:00:57]} 41. g3 {[%emt 0:00:58]} g5 {[%emt 0:00:48]} 42. Bd1 {[%emt 0:00:22]} Kg8 {[%emt 0:01:03]} 43. g4 {[%emt 0:01:20]} h6 {[%emt 0:00:27]} 44. gxf5 {[%emt 0:00:18]} Rxf5 {[%emt 0:00:33]} 45. Bg4 {[%emt 0:00:12]} Rxe5 {[%emt 0:00:19]} 46. dxe5 {[%emt 0:00:50]} Rb6 {[%emt 0:00:35]} 47. Rf1 {[%emt 0:00:14]} Rb8 {[%emt 0:00:53]} 48. Nf6+ {[%emt 0:00:48]} Nxf6 {[%emt 0:00:01]} 49. exf6 {[%emt 0:00:24]} Kf8 {[%emt 0:00:47]} 50. Rd1 {[%emt 0:00:15]} Rb7 {[%emt 0:00:26]} 51. Bh5 {[%emt 0:00:33]} e5 {[%emt 0:00:52]} 52. Rd6 {[%emt 0:00:17]} a5 {[%emt 0:00:34]} 53. Ra6 {[%emt 0:00:23]} Rb8 {[%emt 0:00:01]} 54. Ra7 {[%emt 0:00:43]} Bxh3 {[%emt 0:00:14]} 55. Rh7 {[%emt 0:00:45]} Kg8 {[%emt 0:00:13]} 56. Rg7+ {[%emt 0:00:29]} Kf8 {[%emt 0:00:20]} 57. Rf7+ {[%emt 0:00:16]} Kg8 {[%emt 0:00:05]} 58. Rg7+ {[%emt 0:00:33]} Kf8 {[%emt 0:00:01]} 59. Re7 {[%emt 0:00:17]} Bd7 {[%emt 0:00:06]} 1/2-1/2

[Event "1st Archibald 2019"]
[Site "Sochi"]
[Date "2019.05.19"]
[Round "9.6"]
[White "Makoveev, Ilya"]
[Black "Volkov, Sergey"]
[Result "1/2-1/2"]
[ECO "C06"]
[WhiteElo "2290"]
[BlackElo "2572"]
[Annotator "RC"]
[PlyCount "93"]
[EventDate "2019.05.12"]
[EventType "swiss"]
[EventCountry "RUS"]
[SourceTitle "playchess.com"]
[Source "ChessBase"]
[SourceQuality "1"]
[TimeControl "5400+30"]

1. e4 {[%emt 0:01:28]} e6 {[%emt 0:00:00]} 2. d4 {[%emt 0:00:00]} d5 {[%emt 0:00:00]} 3. Nd2 {[%emt 0:00:18]} Nf6 {[%emt 0:00:00]} 4. e5 {[%emt 0:00:45]} Nfd7 {[%emt 0:00:04]} 5. Bd3 {[%emt 0:00:15]} c5 {[%emt 0:00:06]} 6. c3 {[%emt 0:00:00]} Nc6 {[%emt 0:00:06]} 7. Ne2 {[%emt 0:00:27]} cxd4 {[%emt 0:00:00]} 8. cxd4 {[%emt 0:00:08]} f6 {[%emt 0:00:12]} 9. exf6 {[%emt 0:00:13]} Nxf6 {[%emt 0:00:07]} 10. Nf3 {[%emt 0:01:00]} Bd6 {[%emt 0:00:09]} 11. O-O {[%emt 0:00:19]} O-O {[%emt 0:00:09]} 12. Bf4 {[%emt 0:00:00]} Bxf4 {[%emt 0:00:12]} 13. Nxf4 {[%emt 0:00:24]} Ng4 {[%emt 0:00:00]} 14. Qd2 {[%emt 0:01:12]} Qf6 {[%emt 0:00:27]} 15. Ne2 {[%emt 0:00:51]} e5 {[%emt 0:00:23]} 16. dxe5 {[%emt 0:00:07]} Ngxe5 {[%emt 0:00:21]} 17. Nxe5 {[%emt 0:00:40]} Nxe5 {[%emt 0:00:06]} 18. Nd4 {[%emt 0:00:03]} Bg4 {[%emt 0:01:31]} 19. f3 {[%emt 0:00:41]} Bh5 {[%emt 0:00:36]} 20. Rad1 {[%emt 0:00:27]} Bf7 {[%emt 0:04:49]} 21. b3 {[%emt 0:04:07]} a5 {[%emt 0:00:45]} 22. Bb5 {[%emt 0:10:32]} Qb6 {[%emt 0:06:05]} 23. Rfe1 {[%emt 0:19:49]} Nc6 {[%emt 0:01:02]} 24. Bxc6 {[%emt 0:02:18]} bxc6 {[%emt 0:00:00]} 25. Rc1 {[%emt 0:00:53]} Rac8 {[%emt 0:07:26]} 26. Qc3 {[%emt 0:09:13]} Rfe8 {[%emt 0:02:07]} 27. Rxe8+ {[%emt 0:02:04]} Bxe8 {[%emt 0:00:04]} 28. Qc5 {[%emt 0:00:00]} Qb4 {[%emt 0:00:57]} 29. Rc3 {[%emt 0:16:04]} Bd7 {[%emt 0:01:05]} 30. a3 {[%emt 0:02:33]} Qxc5 {[%emt 0:06:43]} 31. Rxc5 {[%emt 0:00:06]} Kf8 {[%emt 0:00:40]} 32. b4 {[%emt 0:04:23]} axb4 {[%emt 0:00:07]} 33. axb4 {[%emt 0:00:01]} Rb8 {[%emt 0:06:09]} 34. Nxc6 {[%emt 0:03:12]} Bxc6 {[%emt 0:00:07]} 35. Rxc6 {[%emt 0:00:00]} Rxb4 {[%emt 0:00:07]} 36. Rd6 {[%emt 0:03:14]} Rd4 {[%emt 0:00:06]} 37. Rd7 {[%emt 0:00:33]} Rd2 {[%emt 0:00:09]} 38. h4 {[%emt 0:03:25]} h5 {[%emt 0:00:00]} 39. Kh2 {[%emt 0:01:41]} d4 {[%emt 0:00:47]} 40. Kg3 {[%emt 0:01:45]} d3 {[%emt 0:00:07]} 41. Kf4 {[%emt 0:02:52]} Rxg2 {[%emt 0:00:25]} 42. Rxd3 {[%emt 0:00:00]} Kf7 {[%emt 0:00:50]} 43. Rd5 {[%emt 0:00:37]} Kg6 {[%emt 0:00:08]} 44. Rd6+ {[%emt 0:00:31]} Kh7 {[%emt 0:00:13]} 45. Rd5 {[%emt 0:00:00]} Kh6 {[%emt 0:00:11]} 46. Rd6+ {[%emt 0:00:00]} g6 {[%emt 0:00:27]} 47. Ra6 {[%emt 0:00:05]} 1/2-1/2

[Event "1st Archibald 2019"]
[Site "Sochi"]
[Date "2019.05.19"]
[Round "9.11"]
[White "Zakaryan, David"]
[Black "Solozhenkin, Evgeniy"]
[Result "1/2-1/2"]
[ECO "E12"]
[WhiteElo "2350"]
[BlackElo "2441"]
[Annotator "NA"]
[PlyCount "104"]
[EventDate "2019.05.12"]
[EventType "swiss"]
[EventCountry "RUS"]
[SourceTitle "playchess.com"]
[Source "ChessBase"]
[SourceQuality "1"]
[TimeControl "5400+30"]

1. d4 {[%emt 0:00:00]} Nf6 {[%emt 0:00:00]} 2. c4 {[%emt 0:00:17]} e6 {[%emt 0:00:00]} 3. Nf3 {[%emt 0:00:36]} b6 {[%emt 0:00:21]} 4. a3 {[%emt 0:03:43]} Ba6 {[%emt 0:00:26]} 5. Qc2 {[%emt 0:01:17]} Bb7 {[%emt 0:00:53]} 6. Nc3 {[%emt 0:00:44]} c5 {[%emt 0:00:12]} 7. e4 {[%emt 0:01:51]} cxd4 {[%emt 0:00:06]} 8. Nxd4 {[%emt 0:00:06]} d6 {[%emt 0:00:14]} 9. Be2 {[%emt 0:00:18]} a6 {[%emt 0:03:49] E12: Queen's Indian: Unusual White 4th moves, 4 a3, 4 Nc3 Bb7 5 a3 and 4 Nc3 Bb7} (9... Be7 10. O-O O-O 11. Be3 Nbd7 12. f3 a6 13. Rfc1 Rc8 14. Bf1 d5 15. exd5 exd5 16. Nf5 dxc4 17. Nxe7+ Qxe7 18. Re1 b5 19. Rad1 {½-½ (47) Jakovenko,D (2704)-Zhigalko,S (2671) Doha 2016}) 10. O-O {[%emt 0:00:49]} Be7 {[%emt 0:03:07]} 11. Be3 {[%emt 0:00:12]} O-O {[%emt 0:00:32]} 12. Rad1 {[%emt 0:01:18]} Qc7 {[%emt 0:02:42]} 13. f4 {[%emt 0:01:30]} Nbd7 {[%emt 0:00:42]} 14. g4 {[%emt 0:02:27]} Nc5 {[%emt 0:12:39]} 15. Bf3 {[%emt 0:00:32] [#]} Rfc8 $146 {[%emt 0:07:15]} ({Predecessor:} 15... Rae8 16. g5 Nfd7 17. b4 e5 18. fxe5 Ne6 19. exd6 Bxd6 {½-½ (46) Banikas,H (2445)-Lobron,E (2585) Yerevan 1996}) 16. g5 {[%emt 0:02:29]} Ne8 {[%emt 0:00:42]} 17. f5 {[%emt 0:02:11]} e5 {[%emt 0:11:43]} 18. Nde2 {[%emt 0:01:23]} Nd7 {[%emt 0:00:27]} 19. Bg4 {[%emt 0:15:26]} Qd8 {[%emt 0:01:42]} 20. f6 {[%emt 0:04:13]} gxf6 {[%emt 0:00:00]} 21. Nd5 {[%emt 0:07:12]} fxg5 {[%emt 0:01:20]} 22. Ng3 {[%emt 0:04:59]} Ng7 {[%emt 0:12:58]} 23. Qf2 {[%emt 0:16:53]} Bxd5 {[%emt 0:00:46]} 24. cxd5 {[%emt 0:03:43]} f6 {[%emt 0:00:55]} 25. Bxg5 {[%emt 0:02:42]} fxg5 {[%emt 0:02:01]} 26. Qf7+ {[%emt 0:00:00]} Kh8 {[%emt 0:00:07]} 27. Nf5 {[%emt 0:00:53]} Nxf5 {[%emt 0:00:47]} 28. Bxf5 {[%emt 0:00:01]} Nf6 {[%emt 0:10:55]} 29. Bxc8 {[%emt 0:00:00]} Rxc8 {[%emt 0:00:07]} 30. Rc1 {[%emt 0:00:00]} Rxc1 {[%emt 0:06:51]} 31. Rxc1 {[%emt 0:00:00]} Qf8 {[%emt 0:00:00]} 32. Qxf8+ {[%emt 0:01:47]} Bxf8 {[%emt 0:00:42]} 33. Rc6 $11 {[%emt 0:00:34]} Nxe4 {[%emt 0:11:00]} 34. Rxb6 {[%emt 0:00:01]} g4 {[%emt 0:01:14]} 35. Rxa6 {[%emt 0:00:47]} Bh6 {[%emt 0:00:00]} 36. b4 {[%emt 0:00:25]} Kg7 {[%emt 0:03:57]} 37. b5 {[%emt 0:00:52]} Kf6 {[%emt 0:00:33]} 38. b6 {[%emt 0:03:53]} Nc5 {[%emt 0:00:08]} 39. Ra8 {[%emt 0:01:43]} e4 {[%emt 0:00:03]} 40. a4 {[%emt 0:00:27]} Ke5 {[%emt 0:00:32]} 41. a5 {[%emt 0:01:52]} Kxd5 {[%emt 0:00:51]} 42. a6 {[%emt 0:07:30]} Kc6 {[%emt 0:00:45]} 43. b7 {[%emt 0:00:12]} Nxb7 {[%emt 0:00:10]} 44. Rc8+ {[%emt 0:00:43]} Kb6 {[%emt 0:00:46]} 45. axb7 {[%emt 0:00:42]} Kxb7 {[%emt 0:00:00]} 46. Re8 {[%emt 0:00:17]} Be3+ {[%emt 0:03:43]} 47. Kg2 {[%emt 0:00:18]} d5 {[%emt 0:00:06]} 48. Kg3 {[%emt 0:02:05]} Kc6 {[%emt 0:00:10]} 49. Kxg4 {[%emt 0:00:10]} Kc5 {[%emt 0:00:19]} 50. Kf5 {[%emt 0:02:11]} Bd2 {[%emt 0:01:05]} 51. Rxe4 {[%emt 0:03:49]} dxe4 {[%emt 0:02:10]} 52. Kxe4 {[%emt 0:00:03]} Kc4 {[%emt 0:01:43]} 1/2-1/2

[Event "1st Archibald 2019"]
[Site "Sochi"]
[Date "2019.05.19"]
[Round "9.12"]
[White "Guseva, Marina"]
[Black "Gharagyozyan, Artur"]
[Result "1-0"]
[ECO "E12"]
[WhiteElo "2402"]
[BlackElo "2321"]
[Annotator "NA RC"]
[PlyCount "117"]
[EventDate "2019.05.12"]
[EventType "swiss"]
[EventCountry "RUS"]
[SourceTitle "playchess.com"]
[Source "ChessBase"]
[SourceQuality "1"]
[TimeControl "5400+30"]

1. d4 {[%emt 0:00:00]} Nf6 {[%emt 0:00:48]} 2. c4 {[%emt 0:00:00]} e6 {[%emt 0:00:14]} 3. Nc3 {[%emt 0:00:00]} d5 {[%emt 0:00:11]} 4. cxd5 {[%emt 0:00:00]} Nxd5 {[%emt 0:00:24]} 5. e4 {[%emt 0:00:00]} Nxc3 {[%emt 0:00:05]} 6. bxc3 {[%emt 0:00:00]} c5 {[%emt 0:00:04]} 7. a3 {[%emt 0:01:11]} Be7 {[%emt 0:01:53]} 8. Nf3 {[%emt 0:01:12]} O-O {[%emt 0:00:08]} 9. Be2 {[%emt 0:11:58]} b6 {[%emt 0:03:46]} 10. O-O {[%emt 0:00:00]} Bb7 {[%emt 0:00:06]} 11. Bd3 {[%emt 0:00:00]} Nd7 {[%emt 0:03:12]} 12. Qe2 {[%emt 0:00:52]} Rc8 {[%emt 0:02:06]} 13. Bb2 {[%emt 0:11:01]} Qc7 {[%emt 0:03:33]} 14. Nd2 {[%emt 0:00:00] E12: Queen's Indian: Unusual White 4th moves, 4 a3, 4 Nc3 Bb7 5 a3 and 4 Nc3 Bb7} e5 {[%emt 0:02:02]} (14... Rfd8 15. a4 Ne5 16. Bb5 cxd4 17. cxd4 Qc2 18. Rab1 Bb4 19. d5 Ng6 20. Bc1 Bc3 21. dxe6 Bxd2 22. exf7+ Kxf7 {0-1 (34) Pultinevicius,P (2452)-Petrosyan,M (2567) Riga 2018}) 15. d5 {[%emt 0:00:35]} Rcd8 $146 {[%emt 0:04:56]} ({Predecessor:} 15... Rce8 16. c4 Bd6 17. g3 Bc8 18. f3 g6 19. Qg2 f6 20. Rf2 Rf7 21. Bc3 Nf8 {½-½ (34) Stluka,F (2137)-Simek,P (2259) Czechia 2006}) 16. c4 {[%emt 0:01:00]} Bd6 {[%emt 0:01:59]} 17. Nf3 {[%emt 0:09:24]} Bc8 {[%emt 0:00:12]} 18. Bc1 {[%emt 0:01:14]} Nb8 {[%emt 0:00:12]} 19. Qc2 {[%emt 0:01:21]} Bg4 {[%emt 0:01:07]} 20. Ne1 {[%emt 0:00:16]} Qe7 {[%emt 0:00:16]} 21. Rb1 {[%emt 0:00:40]} Bc7 {[%emt 0:00:30]} 22. h3 {[%emt 0:01:26]} Bc8 {[%emt 0:00:00]} 23. Nf3 {[%emt 0:00:40]} h6 {[%emt 0:00:34]} 24. Bb2 {[%emt 0:01:09]} Rfe8 {[%emt 0:03:04]} 25. Rfe1 {[%emt 0:04:21]} Nd7 {[%emt 0:00:15]} 26. Be2 {[%emt 0:00:34]} Nf8 {[%emt 0:00:00]} 27. Nh2 {[%emt 0:03:43]} Ng6 {[%emt 0:05:13]} 28. Bg4 {[%emt 0:00:06]} Nf4 {[%emt 0:01:31]} 29. Bxc8 {[%emt 0:05:23]} Rxc8 {[%emt 0:00:32]} 30. Re3 {[%emt 0:04:45]} Rcd8 {[%emt 0:03:24]} 31. Nf1 {[%emt 0:00:56]} Rd6 {[%emt 0:01:26]} 32. Rg3 {[%emt 0:00:32]} Nh5 {[%emt 0:02:19]} 33. Rf3 {[%emt 0:00:05]} Nf4 {[%emt 0:04:45]} 34. Rd1 {[%emt 0:02:30]} Rg6 {[%emt 0:02:01]} 35. Rg3 {[%emt 0:00:58]} Nh5 {[%emt 0:01:20]} 36. Rxg6 {[%emt 0:00:45]} fxg6 {[%emt 0:00:02]} 37. g3 {[%emt 0:01:50]} Bd6 {[%emt 0:00:27]} 38. Qe2 {[%emt 0:01:00]} Rf8 {[%emt 0:01:31]} 39. Nh2 {[%emt 0:02:54]} Kh7 {[%emt 0:00:43]} 40. Nf3 {[%emt 0:04:14]} Nf6 {[%emt 0:04:05]} 41. Kg2 {[%emt 0:00:30]} g5 {[%emt 0:00:43]} 42. Ne1 {[%emt 0:02:20]} Qd7 {[%emt 0:01:29]} 43. f3 {[%emt 0:03:31]} Qa4 {[%emt 0:03:44]} 44. Qc2 {[%emt 0:00:12]} Qe8 $16 {[%emt 0:01:18]} 45. Nd3 {[%emt 0:00:29]} Kg8 {[%emt 0:03:57]} 46. Re1 {[%emt 0:00:00]} Kh8 {[%emt 0:05:07]} 47. Kh2 {[%emt 0:01:16]} h5 {[%emt 0:03:47]} 48. f4 {[%emt 0:06:49]} exf4 {[%emt 0:07:48]} 49. e5 {[%emt 0:00:34]} fxg3+ {[%emt 0:00:14]} 50. Kg2 {[%emt 0:00:05]} Nxd5 {[%emt 0:03:14]} 51. cxd5 {[%emt 0:00:14]} Qf7 {[%emt 0:01:53]} 52. exd6 {[%emt 0:02:52]} Qf3+ {[%emt 0:01:33]} 53. Kg1 {[%emt 0:00:34]} g4 {[%emt 0:05:23]} 54. Qd2 {[%emt 0:04:56]} Kh7 {[%emt 0:04:04]} 55. Qg5 {[%emt 0:00:57]} Qf7 {[%emt 0:00:11]} 56. Bxg7 {[%emt 0:02:05]} Qxg7 {[%emt 0:00:58]} 57. Re7 {[%emt 0:00:00]} Rf7 {[%emt 0:00:00]} 58. Qxg7+ {[%emt 0:00:00]} Kxg7 {[%emt 0:00:37]} 59. Ne5 {[%emt 0:00:14]} 1-0

[Event "1st Archibald 2019"]
[Site "Sochi"]
[Date "2019.05.19"]
[Round "9.15"]
[White "Gritsayeva, Oksana"]
[Black "Ufimtsev, Egor"]
[Result "1-0"]
[ECO "B11"]
[WhiteElo "2383"]
[BlackElo "2101"]
[Annotator "NA RC"]
[PlyCount "117"]
[EventDate "2019.05.12"]
[EventType "swiss"]
[EventCountry "RUS"]
[SourceTitle "playchess.com"]
[Source "ChessBase"]
[SourceQuality "1"]
[TimeControl "5400+30"]

1. e4 {[%emt 0:00:00]} c6 {[%emt 0:00:00]} 2. Nc3 {[%emt 0:04:02]} d5 {[%emt 0:00:00]} 3. Nf3 {[%emt 0:00:04]} dxe4 {[%emt 0:00:09]} 4. Nxe4 {[%emt 0:00:36]} Nf6 {[%emt 0:00:01]} 5. Qe2 {[%emt 0:03:18]} Nxe4 {[%emt 0:00:11]} 6. Qxe4 {[%emt 0:00:04]} Qd5 {[%emt 0:09:11] B11: Caro-Kann: Two Knights Variation} (6... Qa5 7. Bd3 Na6 8. Qe5 Qxe5+ 9. Nxe5 Nb4 10. Be4 f6 11. c3 Nd5 12. Nf3 a5 13. d4 a4 14. Bd2 {½-½ (41) Adams,M (2703)-Howell,D (2696) London 2018}) 7. Qh4 {[%emt 0:03:00]} Qe6+ {[%emt 0:01:01]} 8. Be2 {[%emt 0:00:14]} Qg4 {[%emt 0:00:03]} 9. Qxg4 {[%emt 0:04:01]} Bxg4 {[%emt 0:01:00]} 10. h3 {[%emt 0:02:02]} Bxf3 $146 {[%emt 0:14:36]} ({Predecessor:} 10... Bh5 11. g4 Bg6 12. d3 Nd7 13. Nh4 e5 14. f4 {0-1 (56) Melnikov,D (2353)-Malofeev,A (2277) St Petersburg 2007}) 11. Bxf3 {[%emt 0:00:00]} e5 {[%emt 0:00:00]} 12. O-O {[%emt 0:02:37]} Bd6 {[%emt 0:03:10]} 13. b4 {[%emt 0:01:48]} Nd7 {[%emt 0:02:33]} 14. Rb1 {[%emt 0:07:16]} Rc8 {[%emt 0:07:18]} 15. c3 {[%emt 0:09:01]} O-O {[%emt 0:09:33]} 16. d3 {[%emt 0:10:19]} f5 {[%emt 0:05:14]} 17. c4 {[%emt 0:01:01]} b6 {[%emt 0:11:15]} 18. Be3 {[%emt 0:02:34]} c5 {[%emt 0:08:39]} 19. b5 {[%emt 0:01:08]} e4 {[%emt 0:00:08]} 20. dxe4 {[%emt 0:02:35]} Ne5 {[%emt 0:00:01]} 21. exf5 {[%emt 0:01:31]} Nxf3+ {[%emt 0:00:17]} 22. gxf3 {[%emt 0:00:05]} Rxf5 {[%emt 0:00:03]} 23. Rfd1 {[%emt 0:01:28]} Bf4 $14 {[%emt 0:06:50]} 24. Kg2 {[%emt 0:03:32]} Rcf8 {[%emt 0:04:41]} 25. Rb3 {[%emt 0:00:59]} Rg5+ {[%emt 0:01:06]} 26. Kf1 {[%emt 0:01:11]} Rgf5 {[%emt 0:07:46]} 27. Rd7 {[%emt 0:05:47]} Bb8 {[%emt 0:00:00]} 28. Rbd3 {[%emt 0:06:06]} Rxf3 {[%emt 0:00:01]} 29. Ke2 {[%emt 0:01:23]} R3f7 {[%emt 0:02:30]} 30. a4 {[%emt 0:01:16]} Rxd7 {[%emt 0:01:17]} 31. Rxd7 {[%emt 0:00:00]} Rf7 {[%emt 0:00:02]} 32. Rd8+ {[%emt 0:00:55]} Rf8 {[%emt 0:00:32]} 33. Rd5 {[%emt 0:00:00]} Kf7 {[%emt 0:00:46]} 34. Rd7+ {[%emt 0:01:04]} Kg6 {[%emt 0:01:13]} 35. Rb7 {[%emt 0:00:00]} Rc8 {[%emt 0:01:59]} 36. Kd3 {[%emt 0:00:01]} Kf6 {[%emt 0:01:36]} 37. Ke4 {[%emt 0:03:08]} Re8+ {[%emt 0:00:00]} 38. Kd3 {[%emt 0:00:45]} Rd8+ {[%emt 0:00:00]} 39. Ke2 {[%emt 0:01:10]} Rc8 {[%emt 0:00:42]} 40. Bd2 {[%emt 0:00:46]} h6 {[%emt 0:01:55]} 41. Bc3+ {[%emt 0:01:24]} Be5 {[%emt 0:00:32]} 42. Bxe5+ {[%emt 0:00:57]} Kxe5 {[%emt 0:00:03]} 43. Ke3 {[%emt 0:00:34]} Rd8 {[%emt 0:00:00]} 44. Re7+ {[%emt 0:00:30]} Kf5 {[%emt 0:00:32]} 45. Rf7+ {[%emt 0:01:12]} Kg5 {[%emt 0:02:03]} 46. Rxa7 {[%emt 0:01:40]} Rd4 {[%emt 0:00:00]} 47. Rxg7+ {[%emt 0:00:48]} Kh5 {[%emt 0:00:26]} 48. f4 {[%emt 0:04:45]} Rxc4 {[%emt 0:00:00]} 49. f5 {[%emt 0:00:05]} Rxa4 {[%emt 0:00:00]} 50. f6 {[%emt 0:00:00]} Ra1 {[%emt 0:01:20]} 51. Kf2 {[%emt 0:02:27]} Ra4 {[%emt 0:00:12]} 52. Ke3 {[%emt 0:01:30]} Ra1 {[%emt 0:00:03]} 53. Ke4 {[%emt 0:01:08]} Rf1 {[%emt 0:00:54]} 54. f7 {[%emt 0:00:26]} Rf2 {[%emt 0:01:33]} 55. Ke5 {[%emt 0:00:27]} Rf1 {[%emt 0:00:00]} 56. Ke6 {[%emt 0:00:44]} Re1+ {[%emt 0:00:32]} 57. Kd7 {[%emt 0:00:33]} Rf1 {[%emt 0:00:34]} 58. Ke8 {[%emt 0:00:25]} Re1+ {[%emt 0:00:02]} 59. Kf8 {[%emt 0:00:45]} 1-0

[Event "1st Archibald 2019"]
[Site "Sochi"]
[Date "2019.05.19"]
[Round "9.16"]
[White "Solozhenkina, Elizaveta"]
[Black "Khudyakov, Stanislav"]
[Result "1-0"]
[ECO "C11"]
[WhiteElo "2329"]
[BlackElo "2086"]
[Annotator "NA RC"]
[PlyCount "111"]
[EventDate "2019.05.12"]
[EventType "swiss"]
[EventCountry "RUS"]
[SourceTitle "playchess.com"]
[Source "ChessBase"]
[SourceQuality "1"]
[TimeControl "5400+30"]

1. e4 {[%emt 0:00:00]} e6 {[%emt 0:00:05]} 2. d4 {[%emt 0:00:08]} d5 {[%emt 0:00:02]} 3. Nc3 {[%emt 0:00:06]} Nf6 {[%emt 0:00:37]} 4. e5 {[%emt 0:02:54]} Nfd7 {[%emt 0:00:14]} 5. f4 {[%emt 0:00:07]} c5 {[%emt 0:00:04]} 6. Nf3 {[%emt 0:00:07]} Nc6 {[%emt 0:00:04]} 7. Be3 {[%emt 0:00:08]} a6 {[%emt 0:01:08]} 8. Qd2 {[%emt 0:00:38]} b5 {[%emt 0:00:06]} 9. dxc5 {[%emt 0:00:39]} Bxc5 {[%emt 0:02:32]} 10. Bd3 {[%emt 0:02:24] C11: French: Classical System: 4 e5 and 4 Bg5 dxe4} Qb6 {[%emt 0:05:52]} 11. Bf2 {[%emt 0:00:17]} Bxf2+ {[%emt 0:03:32]} 12. Qxf2 {[%emt 0:00:06]} Qxf2+ {[%emt 0:00:05]} 13. Kxf2 {[%emt 0:00:06]} Nc5 {[%emt 0:00:13]} 14. Ne2 {[%emt 0:13:04]} Bb7 {[%emt 0:09:57]} 15. Ned4 {[%emt 0:02:10]} Ne7 $146 {[%emt 0:05:28]} ({Predecessor:} 15... Nb4 16. Ke3 Rc8 17. a3 Nbxd3 18. cxd3 {1-0 (29) Ragger,M (2697)-Elliott,W (2238) Baku 2016}) 16. Rhe1 {[%emt 0:07:28]} Rc8 {[%emt 0:05:03]} 17. Nd2 {[%emt 0:12:29]} g6 {[%emt 0:03:53]} 18. N2b3 {[%emt 0:03:08]} Ne4+ {[%emt 0:20:43]} 19. Kg1 {[%emt 0:02:56]} O-O {[%emt 0:02:03]} 20. a4 {[%emt 0:06:58]} bxa4 {[%emt 0:05:35]} 21. Rxa4 {[%emt 0:01:41]} Nc6 {[%emt 0:01:44]} 22. Nxc6 {[%emt 0:11:38]} Rxc6 $16 {[%emt 0:00:07]} 23. Rb4 {[%emt 0:00:17]} Rc7 {[%emt 0:02:47]} 24. c3 {[%emt 0:01:26]} f6 {[%emt 0:03:32]} 25. exf6 {[%emt 0:06:49]} Rxf6 {[%emt 0:00:17]} 26. g3 {[%emt 0:00:04]} h5 {[%emt 0:01:30]} 27. Bxe4 {[%emt 0:03:43]} dxe4 {[%emt 0:00:06]} 28. Na5 {[%emt 0:00:03]} Ba8 {[%emt 0:01:21]} 29. Rb6 {[%emt 0:02:02]} Bd5 {[%emt 0:06:06]} 30. c4 {[%emt 0:01:25]} Ba8 {[%emt 0:00:17]} 31. Rxa6 {[%emt 0:00:16]} Rc8 {[%emt 0:00:05]} 32. b4 {[%emt 0:01:00]} h4 {[%emt 0:00:09]} 33. b5 {[%emt 0:02:16]} hxg3 {[%emt 0:00:06]} 34. hxg3 {[%emt 0:00:03]} g5 {[%emt 0:00:03]} 35. fxg5 {[%emt 0:15:12]} Rf3 {[%emt 0:00:08]} 36. Rxe6 {[%emt 0:00:22]} Rxg3+ {[%emt 0:02:51]} 37. Kf2 {[%emt 0:00:26]} Rxg5 {[%emt 0:00:07]} 38. Ke3 {[%emt 0:00:27]} Rf8 {[%emt 0:00:37]} 39. Nc6 {[%emt 0:00:57]} Rg4 {[%emt 0:03:17]} 40. Ne5 {[%emt 0:01:58]} Rg3+ {[%emt 0:00:17]} 41. Kd4 {[%emt 0:00:01]} Rc8 {[%emt 0:00:08]} 42. b6 {[%emt 0:01:07]} Kg7 {[%emt 0:09:37]} 43. Rd6 {[%emt 0:00:21]} Rg2 {[%emt 0:01:37]} 44. Rd1 {[%emt 0:01:02]} Re8 {[%emt 0:00:46]} 45. c5 {[%emt 0:01:01]} e3 {[%emt 0:00:10]} 46. Nd3 {[%emt 0:00:50]} Rc2 {[%emt 0:02:59]} 47. Rg1+ {[%emt 0:00:34]} Kh7 {[%emt 0:00:13]} 48. Rd7+ {[%emt 0:00:23]} Kh6 {[%emt 0:00:15]} 49. b7 {[%emt 0:00:17]} Bxb7 {[%emt 0:00:14]} 50. Rxb7 {[%emt 0:00:01]} e2 {[%emt 0:00:07]} 51. Rb6+ {[%emt 0:00:49]} Kh7 {[%emt 0:00:06]} 52. Re1 {[%emt 0:00:42]} Rd8+ {[%emt 0:00:09]} 53. Rd6 {[%emt 0:00:04]} Re8 {[%emt 0:00:22]} 54. Rd5 {[%emt 0:00:35]} Rd2 {[%emt 0:01:41]} 55. Kc3 {[%emt 0:00:11]} Rd1 {[%emt 0:00:04]} 56. Kc2 {[%emt 0:00:10]} 1-0